Cogmind - Beta 17 @@@ ROGUE MODE // 2026.06.28 @ 06:58:35 Player: Akl Result: Destroyed by L-31 Rogue with Katana Performance ------------- Evolutions (0) 0 Regions Visited (4) 800 Robots Destroyed (19) 95 Value Destroyed (335) 335 Prototype IDs (0) 0 Alien Tech Used (0) 0 Bonus (0) 0 TOTAL SCORE: 1230 Bonus ------- None Cogmind --------- Core Integrity 0/250 Matter 227/300 Energy 250/250 System Corruption 0% Temperature Cool (0) Movement Hovering (150) Ox1 Location -9/Mines Parts ------- > --- POWER (1) -------- Ion Engine > --- PROPULSION (2) --- Combat Airjet > --- UTILITY (2) ------ Small Storage Unit > --- WEAPON (2) ------- Assault Rifle Grenade Launcher > --- INVENTORY (8) ---- Fission Core Seismic Detector Launcher Guidance Computer Power Shielding Light Armor Plating Mining Laser Plasma Flamer Peak State ------------ > --- POWER ------------ Ion Engine > --- PROPULSION ------- Compact Wheel Combat Airjet > --- UTILITY ---------- Small Storage Unit Improved Terrain Scanner > --- WEAPON ----------- Plasma Flamer Hammer > --- INVENTORY -------- Ion Engine Seismic Detector Power Shielding Medium Laser Assault Rifle Grenade Launcher Mining Laser Mining Laser [Rating: 17] Favorites ----------- Power Ion Engine Engine Ion Engine Propulsion Compact Wheel Wheel Compact Wheel Hover Unit Combat Airjet Flight Unit Flight Unit Utility Small Storage Unit Device Improved Terrain Scanner Storage Small Storage Unit Weapon Hammer Energy Gun Medium Laser Ballistic Gun Assault Rifle Launcher Grenade Launcher Special Weapon Plasma Flamer Impact Weapon Hammer Build | -11 -10 -10 -10 -9 ------- Run | Yrd Mat Min Exi Min Slots Evolved . | . . . . . Power . | . . . . . Propulsion . | . . . . . Utility . | . . . . . Weapon . | . . . . . Parts Attached 14 | 7 1 6 . . Power 2 | 1 . 1 . . Engine 2 | 1 . 1 . . Core . | . . . . . Reactor . | . . . . . Propulsion 4 | 2 . 2 . . Treads . | . . . . . Leg . | . . . . . Wheel 2 | 2 . . . . Hover 1 | . . 1 . . Flight 1 | . . 1 . . Utility 2 | 2 . . . . Device 1 | 1 . . . . Storage 1 | 1 . . . . Processor . | . . . . . Hackware . | . . . . . Protection . | . . . . . Artifact . | . . . . . Weapon 6 | 2 1 3 . . Energy Gun 1 | 1 . . . . Energy Cannon . | . . . . . Ballistic Gun 1 | 1 . . . . Ballistic Cannon . | . . . . . Launcher 1 | . . 1 . . Special Weapon 2 | . 1 1 . . Impact Weapon 1 | . . 1 . . Slashing Weapon . | . . . . . Piercing Weapon . | . . . . . Special Melee Weapon . | . . . . . Unidentified Prototypes . | . . . . . Parts Lost 3 | . . 1 . 2 Power . | . . . . . Propulsion 2 | . . 1 . 1 Utility 1 | . . . . 1 Weapon . | . . . . . Highest Loss Streak 2 | . . 1 . 2 To Critical Strikes 1 | . . 1 . . Average Backups 7 | 1 3 7 8 7 Power . | 1 1 . 1 1 Propulsion . | . . . . . Utility 3 | . 1 2 4 4 Weapon 2 | . 1 3 3 2 Tool/Special . | . . . . . Unused Backups 9 | . . 1 2 6 Power 3 | . . . 2 1 Propulsion . | . . . . . Utility 4 | . . . . 4 Weapon 2 | . . 1 . 1 Tool/Special . | . . . . . Average Slot Usage (%) 98 | . 95 97 100 97 Engine 14 | . 14 14 14 14 Wheel 16 | . 28 16 14 13 Hover 11 | . . 9 14 14 Device 13 | . 14 14 14 12 Storage 14 | . 14 14 14 14 Energy Gun 1 | . 10 . . . Ballistic Gun 1 | . 8 2 . . Launcher 11 | . . 9 14 14 Special Weapon 1 | . 5 2 . . Impact Weapon 12 | . . 13 14 13 Peak Build Rating 17 | 9 9 17 14 14 Average Rating 12 | 4 8 12 14 13 On Entrance 9 | . 9 8 14 14 Avg Prop Armor Cover (%) 4 | 6 6 4 4 4 Naked Turns . | . . . . . Heaviest Build 16 | 15 15 16 16 16 Greatest Support 16 | 16 16 16 12 12 Greatest Overweight (x) 3 | 3 . 1 1 1 Average Overweight (x) . | . . . 1 1 Largest Inventory Capacity 8 | 8 8 8 8 8 Average Capacity 7 | 7 8 8 8 8 Most Carried 8 | 4 6 8 8 8 Average Carried 7 | 1 3 7 7 7 Final Capacity 8 | 8 8 8 8 8 Final Carried 8 | 3 6 8 8 7 Class Distribution -------------------- 100% | Mutant Dominant Class ---------------- Mutant | -10/Materials Mutant | -10/Mines Mutant | -10/Exiles Mutant | -9/Mines Resources | -11 -10 -10 -10 -9 ----------- Run | Yrd Mat Min Exi Min Matter Collected 424 | 231 . 176 . 17 Remotely . | . . . . . Salvage Created 245 | 22 . 146 . 77 Parts 36 | 5 . 17 . 14 Haulers Intercepted . | . . . . . Recyclers Shooed . | . . . . . Parts Field Recycled . | . . . . . Retrieved Matter . | . . . . . Parts Self-Destructed . | . . . . . Prevented . | . . . . . Parts Restored . | . . . . . Kills | -11 -10 -10 -10 -9 ------- Run | Yrd Mat Min Exi Min Combat Hostiles Destroyed 18 | . . 11 . 7 Melee 1 | . . 1 . . Cannons 2 | . . 2 . . AOE 13 | . . 6 . 7 Classes Destroyed 4 | 1 . 3 . . Tunneler 1 | 1 . . . . Swarmer 14 | . . 8 . 6 Grunt 2 | . . 1 . 1 Sentry 2 | . . 2 . . Best Kill Streak 3 | 1 . 3 . 3 Combat Bots Only 3 | . . 3 . 3 Max Kills in Single Turn 3 | 1 . 2 . 3 Gunslinging . | . . . . . Exploded 3 | . . 2 . 3 Melee 1 | . . 1 . . Uniques/NPCs Destroyed . | . . . . . Combat | -11 -10 -10 -10 -9 -------- Run | Yrd Mat Min Exi Min Hostile Shots Fired 56 | . . 38 . 18 Missed 21 | . . 15 . 6 Hits 35 | . . 23 . 12 Melee 7 | . . . . 7 Projectile 28 | . . 23 . 5 Critical Strikes 2 | . . 1 . 1 Damage Taken 545 | . 1 252 . 292 Core 254 | . . 77 . 177 Absorbed by Shields . | . . . . . Core Remaining (%) 100 | 100 . . . . Volleys Fired 26 | 2 7 10 . 7 Largest 2 | 2 2 1 . 1 Hottest 100 | 70 100 100 . 30 Shots Fired 31 | 4 10 10 . 7 Gun 13 | 4 6 . . 3 Cannon . | . . . . . Launcher 11 | . . 7 . 4 Special 7 | . 4 3 . . Kinetic 8 | 2 3 . . 3 Thermal 12 | 2 7 3 . . Explosive 11 | . . 7 . 4 Electromagnetic . | . . . . . Robot Hit Streak 5 | 1 1 4 . 5 Robot Miss Streak 4 | 1 4 2 . 1 Penetration Max . | . . . . . Secondary Targets . | . . . . . Shots Hit Robots 14 | 2 1 7 . 4 Core Hits 27 | 1 . 15 . 11 Critical Kills . | . . . . . Critical Parts Destroyed 1 | . . 1 . . Critical Strikes 2 | . . 2 . . Burn 1 | . . 1 . . Smash 1 | . . 1 . . Melee Attacks 14 | . . 9 . 5 Impact 14 | . . 9 . 5 Slashing . | . . . . . Piercing . | . . . . . Sneak Attacks . | . . . . . Combat Hostiles . | . . . . . Follow-up Attacks . | . . . . . Damage Inflicted 795 | 25 15 377 . 378 Guns 60 | 25 12 . . 23 Cannons . | . . . . . Explosions 570 | . . 248 . 322 Melee 116 | . . 83 . 33 Ramming 10 | . 3 7 . . Kinetic 35 | 12 . . . 23 Thermal 64 | 13 12 39 . . Explosive 570 | . . 248 . 322 Electromagnetic . | . . . . . Impact 116 | . . 83 . 33 Slashing . | . . . . . Piercing . | . . . . . Highest Corruption . | . . . . . Average Corruption . | . . . . . Corruption Purged . | . . . . . Corruption Blocked . | . . . . . Overload Shots . | . . . . . Overflow Damage 40 | . . 40 . . Projectiles . | . . . . . Explosions . | . . . . . Melee 40 | . . 40 . . Knockbacks . | . . . . . Impact . | . . . . . Kinetic . | . . . . . Secondary . | . . . . . Self-Inflicted Damage 61 | . 1 35 . 25 Shots 3 | . . 2 . 1 Rammed 2 | . 1 1 . . Targets Rammed 2 | . 1 1 . . Kicked . | . . . . . Crushed . | . . . . . Highest Temperature 140 | 9 60 140 . . Average Temperature 32 | 6 22 59 . . Received Heat Transfer 27 | . . 9 . 18 Siege Activations . | . . . . . Martial Activations . | . . . . . Shielding Activations . | . . . . . Robots Disrupted . | . . . . . Combat Hostiles . | . . . . . Robots Corrupted 2 | . . 2 . . Combat Hostiles 2 | . . 2 . . Parts Fried 3 | . . 3 . . Impact Corruptions 2 | . . 2 . . Robots Melted . | . . . . . Combat Hostiles . | . . . . . Parts Melted . | . . . . . Heat Transferred 474 | 37 37 400 . . Parts Sabotaged . | . . . . . Parts Stolen . | . . . . . Parts Stripped . | . . . . . Power Chain Reactions . | . . . . . Alert | -11 -10 -10 -10 -9 ------- Run | Yrd Mat Min Exi Min Maximum Alert Level . | . . . . . Low Security (%) 100 | 100 100 100 . 100 Level 1 . | . . . . . Level 2 . | . . . . . Level 3 . | . . . . . Level 4 . | . . . . . Level 5 . | . . . . . High Security . | . . . . . Max Security . | . . . . . Peak Influence 138 | 5 2 108 . 138 Initial . | . . . . . Average 50 | . . 70 . 75 Influence Increases 579 | 5 4 344 . 226 Destroy 0b10 Robot/C 360 | . . 220 . 140 Destroy 0b10 Robot/NC 5 | 5 . . . . Destroy Leader 50 | . . 30 . 20 Disable Machine 45 | . . . . 45 Destroy Structure 74 | . 4 49 . 21 Lose Combat Pursuer 45 | . . 45 . . Influence Decreases 443 | 5 4 270 74 90 Entered New Map 74 | . . . 74 . Time Decay 339 | 5 4 260 . 70 Lost Part 30 | . . 10 . 20 Squads Dispatched . | . . . . . Investigation . | . . . . . Extermination . | . . . . . Reinforcement . | . . . . . Assault . | . . . . . Garrison . | . . . . . Intercept . | . . . . . Searches Triggered . | . . . . . Construction Impeded . | . . . . . Haulers Reinforced . | . . . . . Active Scanning Responses . | . . . . . Cargo Convoy Interrupts . | . . . . . Stealth | -11 -10 -10 -10 -9 --------- Run | Yrd Mat Min Exi Min Distress Signals . | . . . . . Communications Jammed . | . . . . . Distress Signals . | . . . . . Times Spotted 24 | . 2 17 . 5 Peak Tracking Total 3 | . 1 3 . 3 Tactical Retreats 2 | . . 2 . . Traps | -11 -10 -10 -10 -9 ------- Run | Yrd Mat Min Exi Min Traps Triggered . | . . . . . Indirectly . | . . . . . Trap Hack Attempts . | . . . . . Triggered . | . . . . . Disarmed . | . . . . . Reprogrammed . | . . . . . Reused . | . . . . . Traps Extracted . | . . . . . Installed . | . . . . . Triggered . | . . . . . Machines | -11 -10 -10 -10 -9 ---------- Run | Yrd Mat Min Exi Min Machines Disabled 5 | . . 2 . 3 Max in Single Turn 1 | . . 1 . 1 Machines Repaired . | . . . . . Machines Dismantled . | . . . . . Machines Sabotaged . | . . . . . Overloaded Fab Kills . | . . . . . Hacking | -11 -10 -10 -10 -9 --------- Run | Yrd Mat Min Exi Min Machines Accessed 5 | . 1 . 4 . Terminals . | . . . . . Fabricators . | . . . . . Repair Stations . | . . . . . Recycling Units 1 | . 1 . . . Scanalyzers . | . . . . . Garrison Access . | . . . . . Total Hacks 52 | . 3 . 49 . Successful 52 | . 3 . 49 . Failed . | . . . . . Catastrophic . | . . . . . Database Lockouts . | . . . . . Manual . | . . . . . Terminals . | . . . . . Fabricators . | . . . . . Repair Stations . | . . . . . Recycling Units 3 | . 3 . . . Scanalyzers . | . . . . . Garrison Access . | . . . . . Terminal Hacks 49 | . . . 49 . Record 49 | . . . 49 . Fabricator Hacks . | . . . . . Repair Station Hacks . | . . . . . Recycling Unit Hacks 3 | . 3 . . . Recycle Component 1 | . 1 . . . Process 1 | . 1 . . . Report Inventory 1 | . 1 . . . Scanalyzer . | . . . . . Garrison Access Hacks . | . . . . . Unauthorized Hacks . | . . . . . Terminals . | . . . . . Fabricators . | . . . . . Repair Stations . | . . . . . Recycling Units . | . . . . . Scanalyzers . | . . . . . Garrison Access . | . . . . . Data Cores Recovered . | . . . . . Used . | . . . . . Hacking Detections 1 | . 1 . . . Full Trace Events . | . . . . . Feedback Events . | . . . . . Feedback Blocked . | . . . . . Robot Schematics Acquired . | . . . . . Robots Built . | . . . . . Authchips . | . . . . . Time . | . . . . . Total Robot Build Rating . | . . . . . Part Schematics Acquired . | . . . . . Parts Built . | . . . . . Authchips . | . . . . . Time . | . . . . . Total Part Build Rating . | . . . . . Part Studies Acquired . | . . . . . Parts Repaired . | . . . . . Time . | . . . . . Parts Recycled 1 | . 1 . . . Recycled Matter 18 | . 18 . . . Retrieved Matter . | . . . . . Retrieved Components . | . . . . . Parts Scanalyzed . | . . . . . Part Schematics Acquired . | . . . . . Parts Damaged . | . . . . . Bothacking | -11 -10 -10 -10 -9 ------------ Run | Yrd Mat Min Exi Min Used RIF Installer . | . . . . . Robots Hacked . | . . . . . Non-combat . | . . . . . Combat . | . . . . . Robot Hacks Applied . | . . . . . Relay Couplers Released . | . . . . . Fabnet Peak Effective % . | . . . . . Robots Rewired . | . . . . . Allies Hacked . | . . . . . Hacks Repelled . | . . . . . Allies | -11 -10 -10 -10 -9 -------- Run | Yrd Mat Min Exi Min Total Allies . | . . . . . Largest Group . | . . . . . Highest-Rated Group . | . . . . . Highest-Rated Ally . | . . . . . Total Orders . | . . . . . Ally Attacks . | . . . . . Total Damage . | . . . . . Kills . | . . . . . Allies Corrupted . | . . . . . Allies Melted . | . . . . . Intel | -11 -10 -10 -10 -9 ------- Run | Yrd Mat Min Exi Min Active Infowar (turns) 2039 | 7 220 594 1090 128 Terrain 2039 | 7 220 594 1090 128 Robot Analysis Total . | . . . . . Derelict Logs Recovered 1 | . . 1 . . Drone Launches . | . . . . . Drone Recoveries . | . . . . . Exploration | -11 -10 -10 -10 -9 ------------- Run | Yrd Mat Min Exi Min Turns Passed 2136 | 78 220 594 1090 154 Spaces Moved 1398 | 54 173 390 702 79 Core 17 | 17 . . . . Treads . | . . . . . Legs . | . . . . . Wheels 364 | 37 173 154 . . Hover 1017 | . . 236 702 79 Flight . | . . . . . Fastest Speed 50 | 50 100 100 155 150 Average Speed 140 | 100 100 133 155 154 Slowest Speed 200 | 200 100 155 155 155 Overloaded Moves . | . . . . . Propulsion Burnouts . | . . . . . Robots Hopped . | . . . . . Potential Cave-ins . | . . . . . Cave-ins Triggered . | . . . . . Exploration Rate (%) 41 | 4 24 71 92 18 Regions Visited 4 Branch Regions 3 Pre-discovered Areas 2 | . . 1 1 . Known Exits Taken . | . . . . . Unknown Exits Taken 4 | 1 1 1 1 . Scrap Searched 1 | . . 1 . . Spaces Dug 4 | . 4 . . . Terrain Destroyed 86 | . 4 60 . 22 Melee . | . . . . . Projectile 4 | . 4 . . . AOE 82 | . . 60 . 22 Terrain Rammed . | . . . . . Walls Destroyed . | . . . . . Machines Disabled . | . . . . . Actions | -11 -10 -10 -10 -9 --------- Run | Yrd Mat Min Exi Min Total 1510 | 74 201 435 705 95 Wait 26 | . 14 9 . 3 Move 1394 | 53 172 389 701 79 Hop . | . . . . . Pick Up 22 | 10 4 6 2 . Fast Attach 2 | . . 2 . . Attach 10 | 8 . 1 . 1 Detach 1 | 1 . . . . Swap 6 | . 2 4 . . Drop 7 | . 1 4 2 . Fire 26 | 2 7 10 . 7 Melee 14 | . . 9 . 5 Ram 2 | . 1 1 . . Kick . | . . . . . Crush . | . . . . . Escape Stasis . | . . . . . Rewire . | . . . . . Trap . | . . . . . Miscellaneous . | . . . . . Route ------- -11/Scrapyard -10/Materials -10/Mines -10/Exiles -9/Mines History --------- Turn | Location | Event 10 | -11/Scrapyard | Discovered new exit (range 16) 79 | -11/Scrapyard | Entered Materials 225 | -10/Materials | Discovered new exit (range 7) 299 | -10/Materials | Entered Mines 314 | -10/Mines | Learned location of Zion (-7) 320 | -10/Mines | Build established: Mutant 391 | -10/Mines | A weapon hastily lodged in a ceiling crevice suddenly fell to the ground 474 | -10/Mines | Assembled infested the area 489 | -10/Mines | Met 8R-AWN 886 | -10/Mines | Discovered new exit (range 5) 893 | -10/Mines | Entered Exiles 938 | -10/Exiles | Welcomed by 8R-AWN 960 | -10/Exiles | Met EX-HEX 1039 | -10/Exiles | Met EX-DEC 1131 | -10/Exiles | Met EX-BIN 1397 | -10/Exiles | Discovered new exit (range 12) 1539 | -10/Exiles | Visited The Gauntlet 1983 | -10/Exiles | Entered Mines 2127 | -9/Mines | Core integrity fell below 50% 2132 | -9/Mines | Core integrity fell below 20% 2137 | -9/Mines | Destroyed by L-31 Rogue with Katana Last Messages --------------- RA-1N3 was always up for doing crazy stuff, the only one brave enough to try out the Chronowheel, only to never be seen again. 01822_ Dropped Rigged Nuclear Core. 01822_ Acquired Rigged Fission Core. LOCATION=UNKNOWN GOAL=ESCAPE 01983_ S-10 Pest destroyed. 01983_ Seismic Survey Station disabled. 01990_ Acquired 9 matter. 01993_ Acquired 3 matter. 01995_ Acquired 5 matter. 02105_ Pulverizer disabled. 02105_ S-10 Pest destroyed. 02107_ Pulverizer disabled. 02110_ The unstable cave ceiling collapses. 02111_ Imp. Terrain Scanner destroyed. 02121_ Com. Wheel destroyed. 02123_ Hammer severed. 02136_ G-34 Mercenary destroyed. Map ----- +----------------------------------------------------+ | | | | | | | | | | | | | ????????????????????????????????????????? | | ????????????????????????????????????????? | | ????????????????????????????????????????? | | ????????????????????????????????????????? | | ????????????????????????????????????????? | | ????????????????????????????????????????? | | ?????????????????????? ?????????????????? | | ??????????????????????????????????? ????? | | ????????????????????????????????????????? | | ???????????????#?????????? ?????????????? | | ????????????????????????????????????????? | | ????????????????????????????????????????? | | ???????????????????????###??????????????? | | ??????????????????#???? #??????????????? | | ?????????????????## ####=#??????????????? | | ???????????####### [%###????????????? | | ?????? ?????# / #????????????? | | ????????????# "" #????????????? | | ????????????# % l #????????????? | | ????????????# [ =% @ #??????? ????? | | ? ???????? =%= # ##????????????? | | ?#????????### "" ## #?????????????? | | ########?#??# "" " ?# #??#??????????? | | """ #????# """" ?# #?????????????? | | """ #??#?#? ? ?# #?????#???????? | | = "" #????#???? ??# ##???#????????? | | [ #???????? ??# #?????????????? | | ####????? ??# #####?????????? | | #?????#####???# #?????????? | | ## #???????#?#???##### #?????????? | | ## #???##????????????# #?????????? | | ######### #????#????????#???# #???#?????? | | ?????# #?#?####??#???????# #?????????? | | ?????# ####??## ##???####### ######???#? | | ?????# ###??## #????# #?????? | | ?????# #### #????# ######## #???#?? | | ?#??## ## ###??# #???????? #?????? | | ???## ##### #?????????#?????? | | ???# #??????#????????? | | ???# #??????????#????? | | ??### ########???##??????????? | | ????## ##??????????????????????? | | ?????######## ##??????#??????? ????#???? | | ????????????####?#??????????????????????? | +----------------------------------------------------+ Best States ------------- Heat Dissipation 25 Energy Generation 10 Energy Capacity 250 Matter Stores 300 Matter Capacity 300 Sight Range 16 Terrain Scan Range 16 Terrain Scan Density 10 Evasion (%) 50 Item Schematics ----------------- None Robot Schematics ------------------ None Fabricated ------------ Nothing Repaired ---------- Nothing Studied --------- None Alien Tech Used ----------------- None Achievements -------------- None Challenges ------------ None Game ------ Seed MicrowarpFlyingChainsaw Manual? 0 Play Time 00:22:31 Cumulative 8.9 hours Start 2026.06.24 @ 10:51:59 End 2026.06.28 @ 06:58:35 Sessions 3 Manual Loads 0 Difficulty Rogue Special Mode None Game No. 19 Rogue 19 Adventurer 0 Explorer 0 Win Type - Total 0 Types 0/0/0/0/0/0/0/0/0/0 Lore% 9 Gallery% 10 Achievement% 11 Wizard Run 0 Options --------- Layout 1 ASCII 0 Keyboard 0 Movement Mouse Keybinds 0 Fullscreen 1 Font 24/Smallcaps Map View 50x35 Zoom Use 0% Tactical HUD 1 Map Filters NONE Filters NONE Steam 1 RUN: 18ea8049-9ea9-4b50-83d8-1366e394f4e2